fUSD/lending_fUSD_20250930
["ID","MTS","AMOUNT","RATE_DAILY","PERIOD"]
[388555610,1759240316286,-153.011882,0.00019726,2]
[388555611,1759240316295,-8458.571005,0.00019726,2]
[388555612,1759240316307,-863.38,0.00019726,2]
[388555613,1759240316317,-1249.51,0.00019726,2]
[388555614,1759240316327,-585.029215,0.00019726,2]
[388555615,1759240316336,-739.07,0.00019726,2]
[388555616,1759240316346,-505.11,0.00019726,2]
[388555617,1759240316355,-2415.34,0.00019726,2]
[388555618,1759240316364,-1583.56751,0.00019726,2]
[388555619,1759240316374,-295.749901,0.00019726,2]
[388555620,1759240316384,-3504.09,0.00019726,2]
[388555621,1759240316393,-8458.571005,0.00019726,2]
[388555622,1759240316403,-153.011882,0.00019726,2]
[388555623,1759240316412,-5494.11,0.00019726,2]
[388555624,1759240316422,-500.0,0.00019726,2]
[388555625,1759240316431,-585.029211,0.00019726,2]
[388555626,1759240316440,-1836.14,0.00019726,2]
[388555627,1759240316450,-1583.56751,0.00019726,2]
[388555628,1759240316459,-995.39,0.00019726,2]
[388555629,1759240316469,-6705.33,0.00019726,2]
[388555630,1759240316478,-295.749901,0.00019726,2]
[388555631,1759240316488,-500.0,0.00019726,2]
[388555632,1759240316497,-153.011888,0.00019726,2]
[388555633,1759240316506,-6781.75,0.00019726,2]
[388555634,1759240316516,-7000.6,0.00019726,2]
[388555635,1759240316525,-8458.570999,0.00019726,2]
[388555636,1759240316670,-1583.567514,0.00019726,2]
[388555637,1759240316923,-4925.05,0.00019726,2]
[388555638,1759240316933,-295.749897,0.00019726,2]
[388555639,1759240316943,-1562.72,0.00019726,2]
[388555640,1759240316952,-500.0,0.00019726,2]
[388555641,1759240316963,-1497.08,0.00019726,2]
[388555642,1759240316973,-8103.56,0.00019726,2]
[388555643,1759240316982,-500.0,0.00019726,2]
[388555644,1759240316991,-3281.17,0.00019726,2]
[388555645,1759240317001,-681.713007,0.00019726,2]
[388555646,1759240317010,-500.0,0.00019726,2]
[388555647,1759240317020,-681.713007,0.00019726,2]
[388555648,1759240317029,-4136.69,0.00019726,2]
[388555649,1759240317039,-500.0,0.00019726,2]
[388555650,1759240317051,-681.713007,0.00019726,2]
[388555651,1759240317061,-1715.07,0.00019726,2]
[388555652,1759240317071,-500.0,0.00019726,2]
[388555653,1759240317082,-500.0,0.00019726,2]
[388555654,1759240317092,-5894.74,0.00019726,2]
[388555655,1759240317103,-5362.41,0.00019726,2]
[388555656,1759240317113,-1341.41,0.00019726,2]
[388555657,1759240317123,-681.713002,0.00019726,2]
[388555658,1759240317133,-2755.02,0.00019726,2]
[388555659,1759240317142,-500.0,0.00019726,2]
[388555660,1759240317152,-247.262938,0.00019726,2]
[388555661,1759240317162,-500.0,0.00019726,2]
[388555662,1759240317172,-10208.2,0.00019726,2]
[388555663,1759240317181,-247.262938,0.00019726,2]
[388555664,1759240317190,-858.6,0.00019726,2]
[388555665,1759240317199,-3373.16,0.00019726,2]
[388555666,1759240317210,-647.37,0.00019726,2]
[388555667,1759240317219,-1570.13,0.00019726,2]
[388555668,1759240317229,-281.603193,0.00019726,2]
[388555669,1759240317238,-618.74755942,0.00019726,2]
[388555670,1759240317247,-247.262938,0.00019726,2]
[388555671,1759240317261,-1122.49,0.00019726,2]
[388555672,1759240317270,-1556.2,0.00019726,2]
[388555673,1759240317279,-281.603193,0.00019726,2]
[388555674,1759240317289,-500.0,0.00019726,2]
[388555675,1759240317298,-247.262941,0.00019726,2]
[388555676,1759240317308,-3871.47,0.00019726,2]
[388555677,1759240317317,-1684.89,0.00019726,2]
[388555678,1759240317327,-281.603193,0.00019726,2]
[388555679,1759240317337,-931.46,0.00019726,2]
[388555680,1759240317347,-500.0,0.00019726,2]
[388555681,1759240317356,-281.603202,0.00019726,2]
[388555682,1759240317366,-500.0,0.00019726,2]
[388555683,1759240317375,-4011.93,0.00019726,2]
[388555684,1759240317385,-500.0,0.00019726,2]
[388555685,1759240317394,-500.0,0.00019726,2]
[388555686,1759240317403,-500.0,0.00019726,2]
[388555687,1759240317412,-12816.21,0.00019726,2]
[388555688,1759240317421,-500.0,0.00019726,2]
[388555689,1759240317431,-151.0,0.00019726,2]
[388555690,1759240317440,-500.0,0.00019726,2]
[388555691,1759240317450,-500.0,0.00019726,2]
[388555692,1759240317460,-500.0,0.00019726,2]
[388555693,1759240317469,-500.0,0.00019726,2]
[388555694,1759240317479,-151.0,0.00019726,2]
[388555695,1759240317490,-694.15,0.00019726,2]
[388555696,1759240317500,-1162.06,0.00019726,2]
[388555697,1759240317511,-6873.68,0.00019726,2]
[388555698,1759240317521,-151.0,0.00019726,2]
[388555699,1759240317531,-500.0,0.00019726,2]
[388555700,1759240317542,-2523.64,0.00019726,2]
[388555701,1759240317551,-500.0,0.00019726,2]
[388555702,1759240317561,-500.0,0.00019726,2]
[388555703,1759240317570,-3703.76,0.00019726,2]
[388555704,1759240317582,-3826.94,0.00019726,2]
[388555705,1759240317592,-895.74,0.00019726,2]
[388555706,1759240317604,-636.15550452,0.00019726,2]
[388555707,1759240317615,-2564.83,0.00019726,2]
[388555708,1759240317625,-955.85,0.00019726,2]
[388555709,1759240317634,-1051.65,0.00019726,2]
[388555710,1759240317644,-539.85440849,0.00019726,2]
[388555711,1759240317654,-997.01,0.00019726,2]
[388555712,1759240317664,-1238.43,0.00019726,2]
[388555713,1759240317674,-433.126033,0.00019726,2]
[388555714,1759240317683,-1006.62,0.00019726,2]
[388555715,1759240317693,-6876.3,0.00019726,2]
[388555716,1759240317703,-529.91,0.00019726,2]
[388555717,1759240317712,-5950.02,0.00019726,2]
[388555718,1759240317722,-1776.53,0.00019726,2]
[388555719,1759240317731,-433.126033,0.00019726,2]
[388555720,1759240317740,-1367.04,0.00019726,2]
[388555721,1759240317750,-3828.19,0.00019726,2]
[388555722,1759240317759,-500.0,0.00019726,2]
[388555723,1759240317769,-9467.31,0.00019726,2]
[388555724,1759240317779,-500.0,0.00019726,2]
[388555725,1759240317788,-864.482333,0.00019726,2]
[388555726,1759240317797,-433.126033,0.00019726,2]
[388555727,1759240317807,-1184.13,0.00019726,2]
[388555728,1759240317816,-500.0,0.00019726,2]
[388555729,1759240317827,-4922.75,0.00019726,2]
[388555730,1759240317837,-864.482333,0.00019726,2]
[388555731,1759240317847,-433.126024,0.00019726,2]
[388555732,1759240317856,-500.0,0.00019726,2]
[388555733,1759240317865,-151.0,0.00019726,2]
[388555734,1759240317875,-500.0,0.00019726,2]
[388555735,1759240317884,-500.0,0.00019726,2]
[388555736,1759240317893,-864.482333,0.00019726,2]
[388555737,1759240317902,-571.69,0.00019726,2]
[388555738,1759240317912,-2070.05,0.00019726,2]
[388555739,1759240317922,-500.0,0.00019726,2]
[388555740,1759240317932,-500.0,0.00019726,2]
[388555741,1759240317941,-864.482336,0.00019726,2]
[388555742,1759240317951,-500.0,0.00019726,2]
[388555743,1759240317960,-18773.04,0.00019726,2]
[388555744,1759240317969,-5298.65,0.00019726,2]
[388555745,1759240317979,-849.98,0.00019726,2]
[388555746,1759240317988,-11709.24156209,0.00019726,2]
[388555747,1759240319272,-150.96,0.000188,2]
[388555748,1759240319282,-1268.75356506,0.00019726,2]
[388555749,1759240319292,-7889.18487285,0.00019726,2]
[388555750,1759240319302,-500.0,0.00019726,2]
[388555751,1759240319311,-2979.81512714,0.00019726,2]
[388555752,1759240320139,-150.96,0.000188,2]
[388555753,1759240320148,-795.19,0.00019178,2]
[388555754,1759240320159,-151.0,0.000194,2]
[388555755,1759240320169,-946.99,0.00019452,2]
[388555756,1759240320180,-1462.51487286,0.00019726,2]
[388555757,1759240320190,-500.0,0.00019726,2]
[388555758,1759240320200,-519.53872176,0.00019726,2]
[388555759,1759240320219,-499.99,0.000194,2]
[388555760,1759240321195,-150.96,0.000188,2]
[388555761,1759240321206,-150.96,0.000188,2]
[388555762,1759240321217,-150.96,0.000188,2]
[388555763,1759240321227,-150.96,0.000188,2]
[388555764,1759240321236,-150.96,0.000188,2]
[388555765,1759240321247,-150.96,0.000188,2]
[388555766,1759240321259,-150.96,0.000188,2]
[388555767,1759240321268,-150.96,0.000188,2]
[388555768,1759240321277,-150.96,0.000188,2]
[388555769,1759240321287,-150.96,0.000188,2]
[388555770,1759240321296,-150.96,0.000188,2]
[388555771,1759240321306,-150.96,0.000188,2]
[388555772,1759240321315,-150.96,0.000188,2]
[388555773,1759240321325,-150.96,0.000188,2]
[388555774,1759240321336,-150.96,0.000188,2]
[388555775,1759240321345,-150.96,0.000188,2]
[388555776,1759240321354,-150.96,0.000188,2]
[388555777,1759240321364,-150.96,0.000188,2]
[388555778,1759240321374,-151.0,0.00019177,2]
[388555779,1759240321384,-201.686269,0.00019177,2]
[388555780,1759240321393,-542.615369,0.00019177,2]
[388555781,1759240321403,-795.19,0.00019178,2]
[388555782,1759240321412,-542.615369,0.00019178,2]
[388555783,1759240321422,-2248.01,0.00019178,2]
[388555784,1759240321431,-795.19,0.00019178,2]
[388555785,1759240321441,-500.0,0.00019178,2]
[388555786,1759240321451,-151.0,0.00019178,2]
[388555787,1759240321460,-3657.67,0.00019178,2]
[388555788,1759240321470,-795.19,0.00019178,2]
[388555789,1759240321484,-795.19,0.00019178,2]
[388555790,1759240321494,-795.19,0.00019178,2]
[388555791,1759240321505,-500.0,0.00019178,2]
[388555792,1759240321515,-795.19,0.00019178,2]
[388555793,1759240321525,-795.19,0.00019178,2]
[388555794,1759240321535,-670.78,0.00019178,2]
[388555795,1759240321546,-84.159276,0.000194,2]
[388555796,1759240321555,-542.615369,0.000194,2]
[388555797,1759240321565,-298.940506,0.000194,2]
[388555798,1759240321575,-151.0,0.00019452,2]
[388555799,1759240321586,-584.149276,0.00019452,2]
[388555800,1759240321596,-2248.01,0.00019452,2]
[388555801,1759240321606,-622.53405494,0.00019452,2]
[388555802,1759240321616,-3657.67,0.00019452,2]
[388555803,1759240321625,-542.615369,0.00019452,2]
[388555804,1759240321636,-1115.67127824,0.00019726,2]
[388555805,1759240321645,-151.0,0.00019726,2]
[388555806,1759240321655,-500.0,0.00019726,2]
[388555807,1759240321667,-3515.11,0.00019726,2]
[388555808,1759240321676,-680.87,0.00019726,2]
[388555809,1759240321686,-500.0,0.00019726,2]
[388555810,1759240321696,-500.0,0.00019726,2]
[388555811,1759240321706,-732.05,0.00019726,2]
[388555812,1759240321716,-151.0,0.00019726,2]
[388555813,1759240321728,-275.155413,0.00019726,2]
[388555814,1759240321738,-500.0,0.00019726,2]
[388555815,1759240321748,-584.149276,0.00019726,2]
[388555816,1759240321757,-151.0,0.00019726,2]
[388555817,1759240321766,-500.0,0.00019726,2]
[388555818,1759240321776,-500.0,0.00019726,2]
[388555819,1759240321785,-500.0,0.00019726,2]
[388555820,1759240321795,-3586.23,0.00019726,2]
[388555821,1759240321804,-584.149276,0.00019726,2]
[388555822,1759240321814,-1344.1,0.00019726,2]
[388555823,1759240321823,-151.0,0.00019726,2]
[388555824,1759240321834,-500.0,0.00019726,2]
[388555825,1759240321845,-921.26,0.00019726,2]
[388555826,1759240321855,-500.0,0.00019726,2]
[388555827,1759240321865,-584.149276,0.00019726,2]
[388555828,1759240321874,-542.615369,0.00019726,2]
[388555829,1759240321884,-151.0,0.00019726,2]
[388555830,1759240321894,-151.0,0.00019726,2]
[388555831,1759240321905,-500.0,0.00019726,2]
[388555832,1759240321914,-584.149268,0.00019726,2]
[388555833,1759240321924,-2248.01,0.00019726,2]
[388555834,1759240321933,-3657.67,0.00019726,2]
[388555835,1759240321942,-542.615369,0.00019726,2]
[388555836,1759240321952,-385540.14,0.00019726,2]
[388555837,1759240321961,-250.0,0.00019726,2]
[388555838,1759240321971,-156.58700001,0.00019726,2]
[388555839,1759240321980,-185.0,0.00019742,2]
[388555840,1759240321990,-193.3,0.00019744,2]
[388555841,1759240321999,-195.40268892,0.00019753,2]
[388555842,1759240322009,-276.40823527,0.00019753,2]
[388555843,1759240322018,-185.0,0.00019759,2]
[388555844,1759240322028,-185.0,0.00019763,2]
[388555845,1759240322038,-1300.0,0.00019766,2]
[388555846,1759240322047,-181.79870319,0.00019808,2]
[388555847,1759240322058,-181.79870318,0.00019808,2]
[388555848,1759240322067,-161.02170369,0.00019808,2]
[388555849,1759240322077,-2229.07,0.00019815,2]
[388555850,1759240322089,-195.40268892,0.00019836,2]
[388555851,1759240322099,-276.40823527,0.00019836,2]
[388555852,1759240322108,-334.5472959,0.00019841,2]
[388555853,1759240322119,-239.84119403,0.00019841,2]
[388555854,1759240322128,-228.4,0.0001985,2]
[388555855,1759240322138,-152.0,0.00019863,2]
[388555856,1759240322147,-152.0,0.00019863,2]
[388555857,1759240322157,-152.0,0.00019863,2]
[388555858,1759240322166,-152.0,0.00019863,2]
[388555859,1759240322183,-152.0,0.00019863,2]
[388555860,1759240322196,-152.0,0.00019863,2]
[388555861,1759240322206,-152.0,0.00019863,2]
[388555862,1759240322217,-152.0,0.00019863,2]
[388555863,1759240322227,-195.05163321,0.00019863,2]
[388555864,1759240322237,-151.0,0.00019863,2]
[388555865,1759240322247,-151.0,0.00019863,2]
[388555866,1759240322259,-153.70794709,0.00019863,2]
[388555867,1759240322270,-152.0,0.00019863,2]
[388555868,1759240322282,-152.0,0.00019863,2]
[388555869,1759240322291,-152.0,0.00019863,2]
[388555870,1759240322301,-152.0,0.00019863,2]
[388555871,1759240322312,-152.0,0.00019863,2]
[388555872,1759240322325,-946.54,0.00019863,2]
[388555873,1759240322337,-171.2013385,0.00019885,3]
[388555874,1759240322346,-161.02170369,0.0001989,2]
[388555875,1759240322355,-195.40268892,0.00019918,2]
[388555876,1759240322365,-276.40823527,0.00019918,2]
[388555877,1759240322374,-185.0,0.00019946,2]
[388555878,1759240322384,-185.0,0.00019947,2]
[388555879,1759240322393,-362.92,0.00019951,2]
[388555880,1759240322403,-400.40359814,0.0001997,2]
[388555881,1759240322412,-1200.99558879,0.0001997,2]
[388555882,1759240322422,-193.3,0.00019976,2]
[388555883,1759240322431,-494.0,0.00019987,2]
[388555884,1759240322441,-1178.0,0.00019987,2]
[388555885,1759240322451,-451.0,0.00019987,2]
[388555886,1759240322460,-500.0,0.00019987,2]
[388555887,1759240322470,-1000.0,0.00019999,2]
[388555888,1759240322480,-500.0,0.0002,2]
[388555889,1759240322490,-150.0,0.0002,2]
[388555890,1759240322500,-1901.48234374,0.0002,2]
[388555891,1759240322510,-1800.0,0.0002,3]
[388555892,1759240322520,-1232.0,0.0002,3]
[388555893,1759240322529,-150.0,0.0002,2]
[388555894,1759240322539,-150.0,0.0002,2]
[388555895,1759240322549,-214.0,0.0002,2]
[388555896,1759240322558,-150.0,0.0002,2]
[388555897,1759240322568,-939.45,0.0002,2]
[388555898,1759240322578,-742.62,0.0002,2]
[388555899,1759240322589,-839.87,0.0002,2]
[388555900,1759240322598,-699.23,0.0002,2]
[388555901,1759240322608,-1043.7,0.0002,2]
[388555902,1759240322618,-150.0,0.0002,2]
[388555903,1759240322629,-1734.33,0.0002,2]
[388555904,1759240322640,-1038.99,0.0002,2]
[388555905,1759240322651,-942.79,0.0002,2]
[388555906,1759240322660,-500.0,0.0002,2]
[388555907,1759240322671,-1383.29,0.0002,2]
[388555908,1759240322682,-500.0,0.0002,2]
[388555909,1759240322691,-2539.98,0.0002,2]
[388555910,1759240322700,-500.0,0.0002,2]
[388555911,1759240322710,-777.62,0.0002,2]
[388555912,1759240322719,-1690.1,0.0002,2]
[388555913,1759240322728,-1124.22,0.0002,2]
[388555914,1759240322738,-2279.01,0.0002,2]
[388555915,1759240322747,-500.0,0.0002,2]
[388555916,1759240322756,-500.0,0.0002,2]
[388555917,1759240322766,-572.0,0.0002,2]
[388555918,1759240322775,-2525.07,0.0002,2]
[388555919,1759240322784,-500.0,0.0002,2]
[388555920,1759240322794,-768.79,0.0002,2]
[388555921,1759240322808,-926.98,0.0002,2]
[388555922,1759240322818,-900.96,0.0002,2]
[388555923,1759240322827,-500.0,0.0002,2]
[388555924,1759240322840,-575.5,0.0002,2]
[388555925,1759240322850,-593.6,0.0002,2]
[388555926,1759240322860,-924.04,0.0002,2]
[388555927,1759240322870,-885.54,0.0002,2]
[388555928,1759240322880,-500.0,0.0002,2]
[388555929,1759240322890,-1751.25,0.0002,2]
[388555930,1759240322900,-1751.25,0.0002,2]
[388555931,1759240322910,-1678.28,0.0002,2]
[388555932,1759240322919,-500.0,0.0002,2]
[388555933,1759240322929,-500.0,0.0002,2]
[388555934,1759240322939,-500.0,0.0002,2]
[388555935,1759240322948,-500.0,0.0002,2]
[388555936,1759240322960,-500.0,0.0002,2]
[388555937,1759240322969,-976.58,0.0002,2]
[388555938,1759240322979,-150.0,0.0002,2]
[388555939,1759240322988,-2413.69,0.0002,2]
[388555940,1759240322997,-500.0,0.0002,2]
[388555941,1759240323007,-500.0,0.0002,2]
[388555942,1759240323016,-500.0,0.0002,2]
[388555943,1759240323026,-943.48,0.0002,2]
[388555944,1759240323035,-500.0,0.0002,2]
[388555945,1759240323046,-2013.23,0.0002,2]
[388555946,1759240323059,-500.0,0.0002,2]
[388555947,1759240323069,-262.88019884,0.0002,2]
[388555948,1759240323078,-500.0,0.0002,2]
[388555949,1759240323093,-500.0,0.0002,2]
[388555950,1759240323103,-500.0,0.0002,2]
[388555951,1759240323114,-764.73,0.0002,2]
[388555952,1759240323123,-1232.09,0.0002,2]
[388555953,1759240323132,-500.0,0.0002,2]
[388555954,1759240323142,-693.13,0.0002,2]
[388555955,1759240323152,-500.0,0.0002,2]
[388555956,1759240323162,-1084.87,0.0002,2]
[388555957,1759240323171,-585.96,0.0002,2]
[388555958,1759240323181,-1406.34,0.0002,2]
[388555959,1759240323191,-500.0,0.0002,2]
[388555960,1759240323201,-500.0,0.0002,2]
[388555961,1759240323211,-818.87,0.0002,2]
[388555962,1759240323220,-500.0,0.0002,2]
[388555963,1759240323230,-500.0,0.0002,2]
[388555964,1759240323240,-1793.65,0.0002,2]
[388555965,1759240323250,-500.0,0.0002,2]
[388555966,1759240323265,-1043.03,0.0002,2]
[388555967,1759240323274,-999.57,0.0002,2]
[388555968,1759240323284,-500.0,0.0002,2]
[388555969,1759240323293,-915.43,0.0002,2]
[388555970,1759240323303,-150.0,0.0002,2]
[388555971,1759240323313,-1611.94,0.0002,2]
[388555972,1759240323323,-1490.93,0.0002,2]
[388555973,1759240323337,-702.03,0.0002,2]
[388555974,1759240323348,-1069.66,0.0002,2]
[388555975,1759240323358,-679.98,0.0002,2]
[388555976,1759240323368,-720.19,0.0002,2]
[388555977,1759240323378,-500.0,0.0002,2]
[388555978,1759240323387,-612.97,0.0002,2]
[388555979,1759240323397,-718.97,0.0002,2]
[388555980,1759240323407,-500.0,0.0002,2]
[388555981,1759240323417,-500.0,0.0002,2]
[388555982,1759240323426,-500.0,0.0002,2]
[388555983,1759240323436,-549.25,0.0002,2]
[388555984,1759240323446,-500.0,0.0002,2]
[388555985,1759240323850,-1031.1,0.0002,2]
[388555986,1759240323868,-500.0,0.0002,2]
[388555987,1759240323878,-723.07,0.0002,2]
[388555988,1759240323886,-500.0,0.0002,2]
[388555989,1759240323895,-798.07,0.0002,2]
[388555990,1759240323903,-500.0,0.0002,2]
[388555991,1759240323913,-699.79,0.0002,2]
[388555992,1759240323923,-746.04,0.0002,2]
[388555993,1759240323933,-534.54,0.0002,2]
[388555994,1759240323942,-500.0,0.0002,2]
[388555995,1759240323951,-500.0,0.0002,2]
[388555996,1759240323961,-500.0,0.0002,2]
[388555997,1759240323970,-500.0,0.0002,2]
[388555998,1759240323980,-500.0,0.0002,2]
[388555999,1759240323990,-500.0,0.0002,2]
[388556000,1759240323999,-500.0,0.0002,2]
[388556001,1759240324009,-1901.3,0.0002,2]
[388556002,1759240324018,-1901.3,0.0002,2]
[388556003,1759240324027,-150.0,0.0002,2]
[388556004,1759240324036,-996.63,0.0002,2]
[388556005,1759240324046,-500.0,0.0002,2]
[388556006,1759240324056,-200.9955,0.0002,2]
[388556007,1759240324066,-500.0,0.0002,2]
[388556008,1759240324075,-500.0,0.0002,2]
[388556009,1759240324088,-500.0,0.0002,2]
[388556010,1759240324097,-500.0,0.0002,2]
[388556011,1759240324106,-500.0,0.0002,2]
[388556012,1759240324115,-547.29,0.0002,2]
[388556013,1759240324124,-547.29,0.0002,2]
[388556014,1759240324132,-500.0,0.0002,2]
[388556015,1759240324141,-500.0,0.0002,2]
[388556016,1759240324150,-500.0,0.0002,2]
[388556017,1759240324160,-500.0,0.0002,2]
[388556018,1759240324171,-500.0,0.0002,2]
[388556019,1759240324181,-500.0,0.0002,2]
[388556020,1759240324192,-500.0,0.0002,2]
[388556021,1759240324202,-500.0,0.0002,2]
[388556022,1759240324211,-858.21,0.0002,2]
[388556023,1759240324221,-822.45,0.0002,2]
[388556024,1759240324230,-822.45,0.0002,2]
[388556025,1759240324240,-500.0,0.0002,2]
[388556026,1759240324250,-195.40268892,0.0002,2]
[388556027,1759240324264,-500.0,0.0002,2]
[388556028,1759240324273,-680.9,0.0002,2]
[388556029,1759240324283,-500.0,0.0002,2]
[388556030,1759240324292,-673.91,0.0002,2]
[388556031,1759240324303,-500.0,0.0002,2]
[388556032,1759240324313,-500.0,0.0002,2]
[388556033,1759240324324,-500.0,0.0002,2]
[388556034,1759240324337,-500.0,0.0002,2]
[388556035,1759240324346,-500.0,0.0002,2]
[388556036,1759240324356,-1312.12,0.0002,2]
[388556037,1759240324365,-544.11,0.0002,2]
[388556038,1759240324375,-500.0,0.0002,2]
[388556039,1759240324385,-676.58,0.0002,2]
[388556040,1759240324394,-500.0,0.0002,2]
[388556041,1759240324408,-500.0,0.0002,2]
[388556042,1759240324417,-500.0,0.0002,2]
[388556043,1759240324427,-820.32,0.0002,2]
[388556044,1759240324437,-500.0,0.0002,2]
[388556045,1759240324446,-300.0,0.0002,2]
[388556046,1759240324456,-500.0,0.0002,2]
[388556047,1759240324465,-500.0,0.0002,2]
[388556048,1759240324475,-300.0,0.0002,2]
[388556049,1759240324486,-527.54,0.0002,2]
[388556050,1759240324496,-500.0,0.0002,2]
[388556051,1759240324506,-276.40823527,0.0002,2]
[388556052,1759240324515,-772.08,0.0002,2]
[388556053,1759240324526,-985.0,0.0002,2]
[388556054,1759240324535,-272.27634164,0.0002,2]
[388556055,1759240324545,-1196.77,0.0002,2]
[388556056,1759240324554,-1307.17,0.0002,2]
[388556057,1759240324563,-1307.17,0.0002,2]
[388556058,1759240324573,-500.0,0.0002,2]
[388556059,1759240324583,-202.15715501,0.0002,2]
[388556060,1759240324592,-646.8,0.0002,2]
[388556061,1759240324602,-619.85,0.0002,2]
[388556062,1759240324611,-380.64721744,0.0002,2]
[388556063,1759240324621,-500.0,0.0002,2]
[388556064,1759240324631,-500.0,0.0002,2]
[388556065,1759240324641,-500.0,0.0002,2]
[388556066,1759240324651,-500.0,0.0002,2]
[388556067,1759240324660,-150.0,0.0002,2]
[388556068,1759240324671,-500.0,0.0002,2]
[388556069,1759240324680,-503.27830279,0.0002,2]
[388556070,1759240324691,-500.0,0.0002,2]
[388556071,1759240324700,-551.65,0.0002,2]
[388556072,1759240324710,-468.2547126,0.0002,2]
[388556073,1759240324720,-500.0,0.0002,2]
[388556074,1759240324730,-500.0,0.0002,2]
[388556075,1759240324740,-161.02170369,0.0002,2]
[388556076,1759240324750,-2533.5,0.0002,2]
[388556077,1759240324760,-500.0,0.0002,2]
[388556078,1759240324770,-1570.81,0.0002,2]
[388556079,1759240324781,-500.0,0.0002,2]
[388556080,1759240324790,-500.0,0.0002,2]
[388556081,1759240324800,-500.0,0.0002,2]
[388556082,1759240324810,-500.0,0.0002,2]
[388556083,1759240324821,-500.0,0.0002,2]
[388556084,1759240324835,-500.0,0.0002,2]
[388556085,1759240324845,-500.0,0.0002,2]
[388556086,1759240324854,-500.0,0.0002,2]
[388556087,1759240324864,-500.0,0.0002,2]
[388556088,1759240324874,-951.58,0.0002,2]
[388556089,1759240324884,-1000.83,0.0002,2]
[388556090,1759240324896,-500.0,0.0002,2]
[388556091,1759240324906,-500.0,0.0002,2]
[388556092,1759240324916,-334.34044839,0.0002,2]
[388556093,1759240324926,-398.68615281,0.0002,2]
[388556094,1759240324935,-500.0,0.0002,2]
[388556095,1759240324948,-500.0,0.0002,2]
[388556096,1759240324959,-500.0,0.0002,2]
[388556097,1759240324968,-980.47,0.0002,2]
[388556098,1759240324978,-500.0,0.0002,2]
[388556099,1759240324987,-500.0,0.0002,2]
[388556100,1759240324997,-500.0,0.0002,2]
[388556101,1759240325007,-500.0,0.0002,2]
[388556102,1759240325018,-500.0,0.0002,2]
[388556103,1759240325027,-620.85,0.0002,2]
[388556104,1759240325037,-596.97,0.0002,2]
[388556105,1759240325047,-846.36511627,0.0002,2]
[388556106,1759240325057,-945.04,0.0002,2]
[388556107,1759240325067,-500.0,0.0002,2]
[388556108,1759240325078,-500.0,0.0002,2]
[388556109,1759240325092,-500.0,0.0002,2]